[Event "January 9 Late 2024"]
[Site "https://www.chess.com"]
[Date "2024.01.09"]
[Round "11"]
[White "Dubov, Daniil"]
[Black "Nakamura, Hikaru"]
[Result "1-0"]
[Board "1"]
[TimeControl "180+1"]
[WhiteFideId "24126055"]
[BlackFideId "2016192"]
[WhiteElo "3139"]
[BlackElo "3212"]
[WhiteTeam "RUS"]
[BlackTeam "USA"]
[WhiteClock "0:00:07"]
[BlackClock "0:00:07"]

1. d4 {[%clk 0:03:00]}  Nf6 {[%clk 0:02:58]} 2. Bf4 {[%clk 0:03:00]}  d5 {[%clk 0:02:56]} 3. e3 {[%clk 0:03:00]}  c5 {[%clk 0:02:56]} 4. Nf3 {[%clk 0:03:00]}  Nc6 {[%clk 0:02:53]} 5. Nbd2 {[%clk 0:03:00]}  cxd4 {[%clk 0:02:38]} 6. exd4 {[%clk 0:03:00]}  Bf5 {[%clk 0:02:38]} 7. Bb5 {[%clk 0:02:59]}  e6 {[%clk 0:02:36]} 8. O-O {[%clk 0:02:57]}  Bd6 {[%clk 0:02:35]} 9. Bxd6 {[%clk 0:02:54]}  Qxd6 {[%clk 0:02:36]} 10. c3 {[%clk 0:02:54]}  O-O {[%clk 0:02:34]} 11. Re1 {[%clk 0:02:54]}  a6 {[%clk 0:02:25]} 12. Bf1 {[%clk 0:02:50]}  Nd7 {[%clk 0:02:21]} 13. a4 {[%clk 0:02:48]}  h6 {[%clk 0:02:21]} 14. h3 {[%clk 0:02:44]}  Rab8 {[%clk 0:02:18]} 15. a5 {[%clk 0:02:43]}  Qc7 {[%clk 0:02:15]} 16. Qa4 {[%clk 0:02:39]}  Rfe8 {[%clk 0:02:11]} 17. Re3 {[%clk 0:02:37]}  Bg6 {[%clk 0:02:02]} 18. Qa3 {[%clk 0:02:35]}  f6 {[%clk 0:02:02]} 19. c4 {[%clk 0:02:24]}  Bf7 {[%clk 0:02:01]} 20. b4 {[%clk 0:02:18]}  Ne7 {[%clk 0:01:59]} 21. Rae1 {[%clk 0:02:10]}  Rbc8 {[%clk 0:01:57]} 22. b5 {[%clk 0:02:02]}  Nf5 {[%clk 0:01:28]} 23. b6 {[%clk 0:01:45]}  Qd8 {[%clk 0:01:25]} 24. Rc3 {[%clk 0:01:39]}  e5 {[%clk 0:01:20]} 25. cxd5 {[%clk 0:01:34]}  exd4 {[%clk 0:01:21]} 26. Rxc8 {[%clk 0:01:27]}  Qxc8 {[%clk 0:01:19]} 27. Rc1 {[%clk 0:01:25]}  Qd8 {[%clk 0:01:14]} 28. Qd3 {[%clk 0:01:15]}  Ne7 {[%clk 0:01:03]} 29. Qxd4 {[%clk 0:01:10]}  Nxd5 {[%clk 0:00:59]} 30. Nc4 {[%clk 0:00:59]}  Nb8 {[%clk 0:00:53]} 31. Qc5 {[%clk 0:00:50]}  Nd7 {[%clk 0:00:47]} 32. Qd6 {[%clk 0:00:44]}  Nf8 {[%clk 0:00:43]} 33. Rd1 {[%clk 0:00:41]}  Ng6 {[%clk 0:00:41]} 34. Qa3 {[%clk 0:00:22]}  Re6 {[%clk 0:00:28]} 35. g3 {[%clk 0:00:21]}  Rc6 {[%clk 0:00:26]} 36. Nd4 {[%clk 0:00:19]}  Rc8 {[%clk 0:00:24]} 37. Nd6 {[%clk 0:00:19]}  Rc3 {[%clk 0:00:21]} 38. Nxf7 {[%clk 0:00:19]}  Kxf7 {[%clk 0:00:21]} 39. Qa2 {[%clk 0:00:18]}  Ne7 {[%clk 0:00:20]} 40. Bg2 {[%clk 0:00:17]}  Rc5 {[%clk 0:00:20]} 41. Ne2 {[%clk 0:00:14]}  g5 {[%clk 0:00:15]} 42. Kh2 {[%clk 0:00:11]}  Kg7 {[%clk 0:00:13]} 43. Nd4 {[%clk 0:00:11]}  Qc8 {[%clk 0:00:13]} 44. Qe2 {[%clk 0:00:09]}  Kf7 {[%clk 0:00:11]} 45. Qh5+ {[%clk 0:00:09]}  Kg7 {[%clk 0:00:12]} 46. Re1 {[%clk 0:00:09]}  Rc1 {[%clk 0:00:09]} 47. Ne6+ {[%clk 0:00:08]}  Kg8 {[%clk 0:00:10]} 48. Rxc1 {[%clk 0:00:08]}  Qc2 {[%clk 0:00:07]} 49. Rxc2 {[%clk 0:00:07]} 1-0

[Event "January 9 Late 2024"]
[Site "https://www.chess.com"]
[Date "2024.01.09"]
[Round "11"]
[White "Sevian, Samuel"]
[Black "Aronian, Levon"]
[Result "1-0"]
[Board "2"]
[TimeControl "180+1"]
[WhiteFideId "2040506"]
[BlackFideId "13300474"]
[WhiteElo "3159"]
[BlackElo "3125"]
[WhiteTeam "USA"]
[BlackTeam "USA"]
[WhiteClock "0:02:01"]
[BlackClock "0:00:11"]

1. e4 {[%clk 0:03:00]}  c5 {[%clk 0:03:00]} 2. Nf3 {[%clk 0:02:59]}  e6 {[%clk 0:03:00]} 3. d4 {[%clk 0:02:59]}  cxd4 {[%clk 0:03:01]} 4. Bg5 {[%clk 0:02:59]}  Qc7 {[%clk 0:02:51]} 5. Nxd4 {[%clk 0:02:59]}  a6 {[%clk 0:02:50]} 6. Nc3 {[%clk 0:02:56]}  Nc6 {[%clk 0:02:48]} 7. Nxc6 {[%clk 0:02:57]}  bxc6 {[%clk 0:02:48]} 8. Bc4 {[%clk 0:02:57]}  Nf6 {[%clk 0:02:40]} 9. Qe2 {[%clk 0:02:48]}  Bd6 {[%clk 0:01:46]} 10. g3 {[%clk 0:02:35]}  Be5 {[%clk 0:01:36]} 11. O-O {[%clk 0:02:32]}  O-O {[%clk 0:01:30]} 12. Rae1 {[%clk 0:02:18]}  a5 {[%clk 0:01:23]} 13. Bd3 {[%clk 0:02:13]}  a4 {[%clk 0:01:19]} 14. Nd1 {[%clk 0:02:12]}  Bd4 {[%clk 0:00:57]} 15. c3 {[%clk 0:02:09]}  Bb6 {[%clk 0:00:52]} 16. e5 {[%clk 0:02:05]}  Nd5 {[%clk 0:00:51]} 17. c4 {[%clk 0:02:06]}  Nb4 {[%clk 0:00:49]} 18. Bxh7+ {[%clk 0:01:59]}  Kxh7 {[%clk 0:00:47]} 19. Qh5+ {[%clk 0:02:00]}  Kg8 {[%clk 0:00:11]} 20. Bf6 {[%clk 0:02:01]} 1-0

[Event "January 9 Late 2024"]
[Site "https://www.chess.com"]
[Date "2024.01.09"]
[Round "11"]
[White "Nepomniachtchi, Ian"]
[Black "Bortnyk, Olexandr"]
[Result "1/2-1/2"]
[Board "3"]
[TimeControl "180+1"]
[WhiteFideId "4168119"]
[BlackFideId "14120828"]
[WhiteElo "3145"]
[BlackElo "3120"]
[WhiteTeam "RUS"]
[BlackTeam "UKR"]
[WhiteClock "0:00:30"]
[BlackClock "0:00:04"]

1. d4 {[%clk 0:03:00]}  d6 {[%clk 0:02:58]} 2. e4 {[%clk 0:03:00]}  Nf6 {[%clk 0:02:59]} 3. Nc3 {[%clk 0:03:00]}  e5 {[%clk 0:02:59]} 4. Nf3 {[%clk 0:03:00]}  Nbd7 {[%clk 0:03:00]} 5. Bc4 {[%clk 0:03:00]}  Be7 {[%clk 0:03:00]} 6. O-O {[%clk 0:03:01]}  O-O {[%clk 0:02:58]} 7. Re1 {[%clk 0:03:01]}  a6 {[%clk 0:02:58]} 8. a4 {[%clk 0:03:01]}  b6 {[%clk 0:02:59]} 9. d5 {[%clk 0:03:01]}  Bb7 {[%clk 0:02:55]} 10. b3 {[%clk 0:02:59]}  c6 {[%clk 0:02:53]} 11. dxc6 {[%clk 0:02:57]}  Bxc6 {[%clk 0:02:54]} 12. Nd5 {[%clk 0:02:45]}  Nxd5 {[%clk 0:02:47]} 13. Bxd5 {[%clk 0:02:46]}  Qc7 {[%clk 0:02:28]} 14. c4 {[%clk 0:02:44]}  b5 {[%clk 0:02:21]} 15. axb5 {[%clk 0:02:42]}  axb5 {[%clk 0:02:20]} 16. Rxa8 {[%clk 0:02:42]}  Rxa8 {[%clk 0:01:56]} 17. cxb5 {[%clk 0:02:41]}  Bxd5 {[%clk 0:01:57]} 18. Qxd5 {[%clk 0:02:42]}  Rb8 {[%clk 0:01:55]} 19. Be3 {[%clk 0:02:40]}  Qa5 {[%clk 0:01:50]} 20. Rc1 {[%clk 0:02:19]}  Rxb5 {[%clk 0:01:40]} 21. Qc6 {[%clk 0:02:19]}  Nf8 {[%clk 0:01:09]} 22. Nd2 {[%clk 0:02:05]}  h6 {[%clk 0:00:51]} 23. h3 {[%clk 0:01:50]}  Rb8 {[%clk 0:00:44]} 24. Qc7 {[%clk 0:01:48]}  Qxc7 {[%clk 0:00:43]} 25. Rxc7 {[%clk 0:01:49]}  Bg5 {[%clk 0:00:41]} 26. Bxg5 {[%clk 0:01:44]}  hxg5 {[%clk 0:00:42]} 27. Nc4 {[%clk 0:01:36]}  Ne6 {[%clk 0:00:37]} 28. Ra7 {[%clk 0:01:37]}  Rxb3 {[%clk 0:00:32]} 29. Nxd6 {[%clk 0:01:36]}  f6 {[%clk 0:00:33]} 30. Nf5 {[%clk 0:01:35]}  Kf8 {[%clk 0:00:26]} 31. g3 {[%clk 0:01:30]}  Rb4 {[%clk 0:00:21]} 32. Kg2 {[%clk 0:01:28]}  Rb3 {[%clk 0:00:16]} 33. Ra6 {[%clk 0:01:25]}  Nc5 {[%clk 0:00:15]} 34. Ra8+ {[%clk 0:01:24]}  Kf7 {[%clk 0:00:15]} 35. Ra7+ {[%clk 0:01:24]}  Kf8 {[%clk 0:00:14]} 36. Nxg7 {[%clk 0:01:04]}  Nxe4 {[%clk 0:00:14]} 37. Ne6+ {[%clk 0:01:04]}  Kg8 {[%clk 0:00:13]} 38. Ra4 {[%clk 0:01:03]}  Nd6 {[%clk 0:00:05]} 39. Ra7 {[%clk 0:00:54]}  Ne4 {[%clk 0:00:05]} 40. Ra4 {[%clk 0:00:54]}  Nd6 {[%clk 0:00:05]} 41. Nc5 {[%clk 0:00:54]}  Rc3 {[%clk 0:00:05]} 42. Nd7 {[%clk 0:00:52]}  Kf7 {[%clk 0:00:05]} 43. Ra6 {[%clk 0:00:52]}  Ne4 {[%clk 0:00:05]} 44. h4 {[%clk 0:00:48]}  gxh4 {[%clk 0:00:04]} 45. gxh4 {[%clk 0:00:49]}  Ke7 {[%clk 0:00:04]} 46. Ra7 {[%clk 0:00:47]}  Ke6 {[%clk 0:00:05]} 47. h5 {[%clk 0:00:47]}  Rc2 {[%clk 0:00:03]} 48. h6 {[%clk 0:00:43]}  Rxf2+ {[%clk 0:00:03]} 49. Kg1 {[%clk 0:00:43]}  Rf4 {[%clk 0:00:01]} 50. Nf8+ {[%clk 0:00:34]}  Kf5 {[%clk 0:00:02]} 51. Ra2 {[%clk 0:00:33]}  Rg4+ {[%clk 0:00:02]} 52. Rg2 {[%clk 0:00:31]}  Rxg2+ {[%clk 0:00:02]} 53. Kxg2 {[%clk 0:00:32]}  Ng5 {[%clk 0:00:03]} 54. h7 {[%clk 0:00:33]}  Nf7 {[%clk 0:00:03]} 55. Kf3 {[%clk 0:00:31]}  e4+ {[%clk 0:00:02]} 56. Ke3 {[%clk 0:00:31]}  Nh8 {[%clk 0:00:03]} 57. Nd7 {[%clk 0:00:29]}  Kg6 {[%clk 0:00:03]} 58. Kxe4 {[%clk 0:00:29]}  f5+ {[%clk 0:00:03]} 59. Kf4 {[%clk 0:00:29]}  Kxh7 {[%clk 0:00:04]} 60. Kxf5 {[%clk 0:00:30]} 1/2-1/2

[Event "January 9 Late 2024"]
[Site "https://www.chess.com"]
[Date "2024.01.09"]
[Round "11"]
[White "Sarana, Alexey"]
[Black "Dominguez Perez, Leinier"]
[Result "1-0"]
[Board "5"]
[TimeControl "180+1"]
[WhiteFideId "24133795"]
[BlackFideId "3503240"]
[WhiteElo "3053"]
[BlackElo "3009"]
[WhiteTeam "SRB"]
[BlackTeam "USA"]
[WhiteClock "0:00:18"]
[BlackClock "0:00:00"]

1. d4 {[%clk 0:03:00]}  d5 {[%clk 0:02:59]} 2. c4 {[%clk 0:03:01]}  dxc4 {[%clk 0:02:59]} 3. Nf3 {[%clk 0:03:02]}  Nf6 {[%clk 0:02:59]} 4. e3 {[%clk 0:03:02]}  e6 {[%clk 0:02:59]} 5. Bxc4 {[%clk 0:03:03]}  a6 {[%clk 0:02:59]} 6. O-O {[%clk 0:02:54]}  c5 {[%clk 0:02:59]} 7. Nc3 {[%clk 0:02:52]}  b5 {[%clk 0:02:58]} 8. Bb3 {[%clk 0:02:52]}  Bb7 {[%clk 0:02:56]} 9. e4 {[%clk 0:02:53]}  cxd4 {[%clk 0:02:56]} 10. Nxd4 {[%clk 0:02:54]}  Nc6 {[%clk 0:02:56]} 11. Nxc6 {[%clk 0:02:54]}  Qxd1 {[%clk 0:02:55]} 12. Rxd1 {[%clk 0:02:55]}  Bxc6 {[%clk 0:02:55]} 13. f3 {[%clk 0:02:55]}  Bc5+ {[%clk 0:02:50]} 14. Kf1 {[%clk 0:02:56]}  Ke7 {[%clk 0:02:39]} 15. e5 {[%clk 0:02:55]}  Nd7 {[%clk 0:02:36]} 16. Bg5+ {[%clk 0:02:56]}  Ke8 {[%clk 0:02:33]} 17. Rac1 {[%clk 0:02:54]}  h6 {[%clk 0:02:32]} 18. Bd2 {[%clk 0:02:51]}  Ke7 {[%clk 0:02:22]} 19. Bc2 {[%clk 0:02:51]}  Rhc8 {[%clk 0:01:47]} 20. Ne4 {[%clk 0:02:46]}  Bd5 {[%clk 0:01:24]} 21. Nxc5 {[%clk 0:02:23]}  Nxc5 {[%clk 0:01:23]} 22. b3 {[%clk 0:02:22]}  Ke8 {[%clk 0:01:18]} 23. Ba5 {[%clk 0:02:11]}  Rc6 {[%clk 0:01:14]} 24. Bb1 {[%clk 0:01:58]}  Rac8 {[%clk 0:01:13]} 25. Ke2 {[%clk 0:01:51]}  Nd7 {[%clk 0:01:02]} 26. Rxc6 {[%clk 0:01:50]}  Rxc6 {[%clk 0:01:03]} 27. f4 {[%clk 0:01:44]}  g6 {[%clk 0:00:49]} 28. g4 {[%clk 0:01:41]}  Kf8 {[%clk 0:00:29]} 29. h4 {[%clk 0:01:40]}  Kg7 {[%clk 0:00:27]} 30. h5 {[%clk 0:01:12]}  gxh5 {[%clk 0:00:23]} 31. gxh5 {[%clk 0:01:12]}  f5 {[%clk 0:00:18]} 32. Rg1+ {[%clk 0:01:09]}  Kh7 {[%clk 0:00:18]} 33. Ke3 {[%clk 0:00:56]}  Rc8 {[%clk 0:00:17]} 34. Bb4 {[%clk 0:00:48]}  Rg8 {[%clk 0:00:11]} 35. Rxg8 {[%clk 0:00:46]}  Kxg8 {[%clk 0:00:12]} 36. Bd3 {[%clk 0:00:46]}  Bc6 {[%clk 0:00:11]} 37. Be2 {[%clk 0:00:43]}  Kf7 {[%clk 0:00:11]} 38. Kd4 {[%clk 0:00:43]}  Ke8 {[%clk 0:00:11]} 39. Ba5 {[%clk 0:00:40]}  Ke7 {[%clk 0:00:10]} 40. Bc7 {[%clk 0:00:38]}  Ke8 {[%clk 0:00:10]} 41. Bd1 {[%clk 0:00:36]}  Bd5 {[%clk 0:00:09]} 42. Be2 {[%clk 0:00:31]}  Be4 {[%clk 0:00:08]} 43. Kc3 {[%clk 0:00:25]}  Nc5 {[%clk 0:00:04]} 44. Bb6 {[%clk 0:00:19]}  Nb7 {[%clk 0:00:03]} 45. a4 {[%clk 0:00:18]}  Bc6 {[%clk 0:00:02]} 46. Kb4 {[%clk 0:00:18]}  bxa4 {[%clk 0:00:02]} 47. bxa4 {[%clk 0:00:17]}  Kd7 {[%clk 0:00:01]} 48. Bxa6 {[%clk 0:00:17]}  Bf3 {[%clk 0:00:01]} 49. Bb5+ {[%clk 0:00:17]}  Kc8 {[%clk 0:00:00]} 50. a5 {[%clk 0:00:18]} 1-0

[Event "January 9 Late 2024"]
[Site "https://www.chess.com"]
[Date "2024.01.09"]
[Round "11"]
[White "Iturrizaga Bonelli, Eduardo"]
[Black "Salem, A.R. Saleh"]
[Result "1-0"]
[Board "6"]
[TimeControl "180+1"]
[WhiteFideId "3901211"]
[BlackFideId "9301348"]
[WhiteElo "3047"]
[BlackElo "2987"]
[WhiteTeam "ESP"]
[BlackTeam "UAE"]
[WhiteClock "0:00:10"]
[BlackClock "0:00:00"]

1. c4 {[%clk 0:03:00]}  c5 {[%clk 0:03:00]} 2. Nf3 {[%clk 0:02:58]}  Nf6 {[%clk 0:03:00]} 3. Nc3 {[%clk 0:02:58]}  d5 {[%clk 0:03:01]} 4. cxd5 {[%clk 0:02:58]}  Nxd5 {[%clk 0:03:02]} 5. Qb3 {[%clk 0:02:57]}  e6 {[%clk 0:02:59]} 6. g3 {[%clk 0:02:56]}  Be7 {[%clk 0:02:58]} 7. Bg2 {[%clk 0:02:56]}  O-O {[%clk 0:02:59]} 8. O-O {[%clk 0:02:57]}  Nc6 {[%clk 0:02:59]} 9. Rd1 {[%clk 0:02:51]}  b6 {[%clk 0:02:56]} 10. d4 {[%clk 0:02:46]}  Nxc3 {[%clk 0:02:53]} 11. bxc3 {[%clk 0:02:46]}  Na5 {[%clk 0:02:39]} 12. Qc2 {[%clk 0:02:43]}  Bb7 {[%clk 0:02:29]} 13. dxc5 {[%clk 0:02:39]}  Qc8 {[%clk 0:02:26]} 14. cxb6 {[%clk 0:02:38]}  axb6 {[%clk 0:02:27]} 15. h4 {[%clk 0:02:01]}  h6 {[%clk 0:02:26]} 16. Bf4 {[%clk 0:01:55]}  Nc4 {[%clk 0:02:22]} 17. a4 {[%clk 0:01:53]}  Bf6 {[%clk 0:02:19]} 18. Qb3 {[%clk 0:01:20]}  Bd5 {[%clk 0:02:16]} 19. Qb4 {[%clk 0:01:16]}  Re8 {[%clk 0:02:07]} 20. Nd2 {[%clk 0:00:41]}  Be7 {[%clk 0:01:11]} 21. Qb1 {[%clk 0:00:34]}  Nxd2 {[%clk 0:00:56]} 22. Bxd2 {[%clk 0:00:32]}  Bc5 {[%clk 0:00:48]} 23. Bxd5 {[%clk 0:00:20]}  exd5 {[%clk 0:00:49]} 24. e3 {[%clk 0:00:20]}  Qg4 {[%clk 0:00:46]} 25. Qd3 {[%clk 0:00:19]}  Re5 {[%clk 0:00:45]} 26. Kg2 {[%clk 0:00:16]}  Rxa4 {[%clk 0:00:44]} 27. Rdc1 {[%clk 0:00:09]}  Qc4 {[%clk 0:00:18]} 28. Qxc4 {[%clk 0:00:06]}  Rxc4 {[%clk 0:00:19]} 29. Ra8+ {[%clk 0:00:06]}  Kh7 {[%clk 0:00:20]} 30. Rca1 {[%clk 0:00:06]}  Re7 {[%clk 0:00:19]} 31. R1a7 {[%clk 0:00:06]}  Rxa7 {[%clk 0:00:19]} 32. Rxa7 {[%clk 0:00:06]}  Kg6 {[%clk 0:00:19]} 33. Rd7 {[%clk 0:00:07]}  Kf6 {[%clk 0:00:17]} 34. Rxd5 {[%clk 0:00:07]}  Ke6 {[%clk 0:00:18]} 35. Rd3 {[%clk 0:00:07]}  h5 {[%clk 0:00:18]} 36. Kf3 {[%clk 0:00:07]}  f5 {[%clk 0:00:18]} 37. Rd8 {[%clk 0:00:07]}  Ra4 {[%clk 0:00:18]} 38. Re8+ {[%clk 0:00:07]}  Kf7 {[%clk 0:00:17]} 39. Rd8 {[%clk 0:00:07]}  Ke6 {[%clk 0:00:18]} 40. Ke2 {[%clk 0:00:07]}  Ra2 {[%clk 0:00:18]} 41. Kd3 {[%clk 0:00:07]}  Ra1 {[%clk 0:00:17]} 42. Rh8 {[%clk 0:00:06]}  g6 {[%clk 0:00:17]} 43. Rg8 {[%clk 0:00:07]}  Kf7 {[%clk 0:00:18]} 44. Rb8 {[%clk 0:00:07]}  Ra2 {[%clk 0:00:18]} 45. Rd8 {[%clk 0:00:06]}  Ke6 {[%clk 0:00:18]} 46. Re8+ {[%clk 0:00:05]}  Kf7 {[%clk 0:00:18]} 47. Rc8 {[%clk 0:00:05]}  Ra3 {[%clk 0:00:18]} 48. f3 {[%clk 0:00:05]}  Ra1 {[%clk 0:00:17]} 49. e4 {[%clk 0:00:05]}  Rg1 {[%clk 0:00:14]} 50. Bf4 {[%clk 0:00:05]}  Rf1 {[%clk 0:00:11]} 51. exf5 {[%clk 0:00:04]}  gxf5 {[%clk 0:00:12]} 52. Rc7+ {[%clk 0:00:02]}  Ke6 {[%clk 0:00:13]} 53. Rc6+ {[%clk 0:00:02]}  Ke7 {[%clk 0:00:10]} 54. Rh6 {[%clk 0:00:03]}  Rxf3+ {[%clk 0:00:10]} 55. Ke2 {[%clk 0:00:03]}  Rxc3 {[%clk 0:00:10]} 56. Rxh5 {[%clk 0:00:04]}  Ke6 {[%clk 0:00:10]} 57. Rh6+ {[%clk 0:00:04]}  Kd5 {[%clk 0:00:11]} 58. Rf6 {[%clk 0:00:05]}  Bd4 {[%clk 0:00:08]} 59. Rxf5+ {[%clk 0:00:04]}  Ke4 {[%clk 0:00:09]} 60. Rf8 {[%clk 0:00:05]}  Rc2+ {[%clk 0:00:09]} 61. Kf1 {[%clk 0:00:05]}  b5 {[%clk 0:00:08]} 62. Bg5 {[%clk 0:00:05]}  Rh2 {[%clk 0:00:06]} 63. Rf4+ {[%clk 0:00:04]}  Kd3 {[%clk 0:00:06]} 64. Rf3+ {[%clk 0:00:04]}  Ke4 {[%clk 0:00:06]} 65. Rb3 {[%clk 0:00:04]}  Rf2+ {[%clk 0:00:03]} 66. Ke1 {[%clk 0:00:05]}  Rg2 {[%clk 0:00:03]} 67. Bf4 {[%clk 0:00:04]}  Rg1+ {[%clk 0:00:02]} 68. Ke2 {[%clk 0:00:04]}  Rg2+ {[%clk 0:00:03]} 69. Kd1 {[%clk 0:00:05]}  Rg1+ {[%clk 0:00:04]} 70. Ke2 {[%clk 0:00:05]}  Rg2+ {[%clk 0:00:05]} 71. Kf1 {[%clk 0:00:04]}  Rb2 {[%clk 0:00:05]} 72. Rxb2 {[%clk 0:00:03]}  Bxb2 {[%clk 0:00:06]} 73. Ke2 {[%clk 0:00:04]}  Bf6 {[%clk 0:00:05]} 74. h5 {[%clk 0:00:04]}  b4 {[%clk 0:00:04]} 75. Kd2 {[%clk 0:00:04]}  b3 {[%clk 0:00:04]} 76. Kc1 {[%clk 0:00:04]}  Kf5 {[%clk 0:00:04]} 77. Kb1 {[%clk 0:00:04]}  Kg4 {[%clk 0:00:03]} 78. h6 {[%clk 0:00:04]}  Kf5 {[%clk 0:00:03]} 79. Bc1 {[%clk 0:00:05]}  Kg6 {[%clk 0:00:03]} 80. g4 {[%clk 0:00:05]}  Be5 {[%clk 0:00:03]} 81. g5 {[%clk 0:00:05]}  Bd4 {[%clk 0:00:03]} 82. Bb2 {[%clk 0:00:05]}  Be3 {[%clk 0:00:03]} 83. Bf6 {[%clk 0:00:06]}  Bf4 {[%clk 0:00:02]} 84. Kb2 {[%clk 0:00:06]}  Be3 {[%clk 0:00:03]} 85. Kxb3 {[%clk 0:00:07]}  Bf4 {[%clk 0:00:03]} 86. Kc4 {[%clk 0:00:07]}  Be3 {[%clk 0:00:04]} 87. Kd5 {[%clk 0:00:08]}  Bd2 {[%clk 0:00:04]} 88. Ke6 {[%clk 0:00:08]}  Bc1 {[%clk 0:00:04]} 89. Ke7 {[%clk 0:00:08]}  Ba3+ {[%clk 0:00:03]} 90. Ke8 {[%clk 0:00:08]}  Bb4 {[%clk 0:00:04]} 91. Be7 {[%clk 0:00:08]}  Bc3 {[%clk 0:00:03]} 92. Kf8 {[%clk 0:00:09]}  Bd2 {[%clk 0:00:01]} 93. Kg8 {[%clk 0:00:09]}  Bc3 {[%clk 0:00:02]} 94. h7 {[%clk 0:00:09]}  Bg7 {[%clk 0:00:01]} 95. Bf6 {[%clk 0:00:09]}  Bh8 {[%clk 0:00:01]} 96. Bxh8 {[%clk 0:00:08]}  Kxg5 {[%clk 0:00:01]} 97. Bg7 {[%clk 0:00:09]}  Kf5 {[%clk 0:00:00]} 98. h8=Q {[%clk 0:00:10]} 1-0

[Event "January 9 Late 2024"]
[Site "https://www.chess.com"]
[Date "2024.01.09"]
[Round "11"]
[White "Aravindh, Chithambaram VR."]
[Black "Caruana, Fabiano"]
[Result "0-1"]
[Board "7"]
[TimeControl "180+1"]
[WhiteFideId "5072786"]
[BlackFideId "2020009"]
[WhiteElo "2952"]
[BlackElo "3029"]
[WhiteTeam "IND"]
[BlackTeam "USA"]
[WhiteClock "0:00:00"]
[BlackClock "0:00:04"]

1. d4 {[%clk 0:03:00]}  Nf6 {[%clk 0:02:59]} 2. Nf3 {[%clk 0:03:01]}  d6 {[%clk 0:02:59]} 3. e3 {[%clk 0:03:01]}  g6 {[%clk 0:02:59]} 4. c4 {[%clk 0:03:00]}  Bg7 {[%clk 0:03:00]} 5. Be2 {[%clk 0:03:01]}  O-O {[%clk 0:03:00]} 6. O-O {[%clk 0:03:01]}  c6 {[%clk 0:02:59]} 7. Nc3 {[%clk 0:03:02]}  Nbd7 {[%clk 0:03:00]} 8. b3 {[%clk 0:03:00]}  Re8 {[%clk 0:02:59]} 9. Ba3 {[%clk 0:02:58]}  Qa5 {[%clk 0:02:58]} 10. Qc1 {[%clk 0:02:58]}  Qc7 {[%clk 0:02:58]} 11. Rd1 {[%clk 0:02:56]}  b6 {[%clk 0:02:58]} 12. e4 {[%clk 0:02:49]}  Bb7 {[%clk 0:02:55]} 13. d5 {[%clk 0:02:49]}  Nc5 {[%clk 0:02:51]} 14. Qc2 {[%clk 0:02:45]}  a5 {[%clk 0:02:48]} 15. Nd4 {[%clk 0:02:38]}  Nfd7 {[%clk 0:02:39]} 16. Rd2 {[%clk 0:02:14]}  Rad8 {[%clk 0:02:33]} 17. Bf1 {[%clk 0:02:13]}  Ne5 {[%clk 0:02:30]} 18. dxc6 {[%clk 0:02:08]}  Nxc6 {[%clk 0:02:26]} 19. Nxc6 {[%clk 0:01:49]}  Bxc6 {[%clk 0:02:27]} 20. f3 {[%clk 0:01:49]}  e6 {[%clk 0:02:25]} 21. Rad1 {[%clk 0:01:49]}  Qe7 {[%clk 0:02:21]} 22. Bb2 {[%clk 0:01:48]}  h5 {[%clk 0:02:16]} 23. Ne2 {[%clk 0:01:46]}  Bxb2 {[%clk 0:02:00]} 24. Qxb2 {[%clk 0:01:47]}  e5 {[%clk 0:02:00]} 25. Nc3 {[%clk 0:01:39]}  h4 {[%clk 0:01:54]} 26. Rf2 {[%clk 0:01:37]}  Ne6 {[%clk 0:01:52]} 27. Qd2 {[%clk 0:01:35]}  Kg7 {[%clk 0:01:49]} 28. Qe3 {[%clk 0:01:35]}  Rb8 {[%clk 0:01:46]} 29. Rfd2 {[%clk 0:01:25]}  Red8 {[%clk 0:01:47]} 30. Re1 {[%clk 0:01:25]}  Qf6 {[%clk 0:01:43]} 31. Red1 {[%clk 0:01:22]}  Nf4 {[%clk 0:01:41]} 32. Ne2 {[%clk 0:01:22]}  g5 {[%clk 0:01:35]} 33. g3 {[%clk 0:01:14]}  Ng6 {[%clk 0:01:21]} 34. Bh3 {[%clk 0:01:14]}  b5 {[%clk 0:01:09]} 35. cxb5 {[%clk 0:01:11]}  Bxb5 {[%clk 0:01:10]} 36. Nc3 {[%clk 0:01:10]}  Bc6 {[%clk 0:01:09]} 37. Bg4 {[%clk 0:01:05]}  Ne7 {[%clk 0:01:03]} 38. Rd3 {[%clk 0:00:48]}  Bb5 {[%clk 0:00:46]} 39. R3d2 {[%clk 0:00:44]}  Bc6 {[%clk 0:00:40]} 40. Rd3 {[%clk 0:00:44]}  Rb4 {[%clk 0:00:33]} 41. Qd2 {[%clk 0:00:40]}  Be8 {[%clk 0:00:06]} 42. Rxd6 {[%clk 0:00:32]}  Rd4 {[%clk 0:00:06]} 43. Qxd4 {[%clk 0:00:22]}  exd4 {[%clk 0:00:04]} 44. Rxf6 {[%clk 0:00:22]}  dxc3 {[%clk 0:00:04]} 45. Rc1 {[%clk 0:00:09]}  Kxf6 {[%clk 0:00:04]} 46. Rxc3 {[%clk 0:00:09]}  Rd2 {[%clk 0:00:04]} 47. a4 {[%clk 0:00:07]}  Nc6 {[%clk 0:00:04]} 48. f4 {[%clk 0:00:04]}  gxf4 {[%clk 0:00:03]} 49. gxf4 {[%clk 0:00:05]}  Nd4 {[%clk 0:00:04]} 50. Rc5 {[%clk 0:00:05]}  Bc6 {[%clk 0:00:04]} 51. e5+ {[%clk 0:00:03]}  Ke7 {[%clk 0:00:04]} 52. h3 {[%clk 0:00:03]}  Bf3 {[%clk 0:00:03]} 53. Rxa5 {[%clk 0:00:03]}  Bxg4 {[%clk 0:00:03]} 54. hxg4 {[%clk 0:00:04]}  Nf3+ {[%clk 0:00:04]} 55. Kf1 {[%clk 0:00:00]}  h3 {[%clk 0:00:04]} 0-1